Cogmind - Beta 13 @@@ ROGUE MODE // 2024.03.31 @ 22:21:48 Player: KoT Result: Destroyed by as-70047 with Assembled F-torch Performance ------------- Evolutions (0) 0 Regions Visited (4) 800 Robots Destroyed (23) 115 Value Destroyed (395) 395 Prototype IDs (23) 460 Alien Tech Used (0) 0 Bonus (284) 284 TOTAL SCORE: 2054 Bonus ------- Aligned with FarCom 300 Friendly Fire -16 Cogmind --------- Core Integrity 0/250 Matter 281/300 Energy 349/350 System Corruption 7% Temperature Cool (20) Movement Core (150) Ox2 Location -9/Mines Parts ------- > --- POWER (1) -------- (None) > --- PROPULSION (2) --- (None) > --- UTILITY (2) ------ Small Storage Unit High-capacity Battery > --- WEAPON (2) ------- (None) > --- INVENTORY (8) ---- Superbattery (1500) EM Pulse Gun Assault Rifle Grenade Launcher Grenade Launcher Peak State ------------ > --- POWER ------------ Light Ion Engine > --- PROPULSION ------- Aluminum Leg > --- UTILITY ---------- Small Storage Unit Sensor Array > --- WEAPON ----------- Particle Gun Assault Rifle > --- INVENTORY -------- High-capacity Battery Superbattery EM Pulse Gun EM Pulse Gun Assault Rifle Grenade Launcher Grenade Launcher [Rating: 8] Favorites ----------- Power Light Ion Engine Engine Light Ion Engine Propulsion Aluminum Leg Leg Aluminum Leg Utility Small Storage Unit Device Sensor Array Storage Small Storage Unit Weapon Assault Rifle Energy Gun Particle Gun Ballistic Gun Assault Rifle Launcher Grenade Launcher Special Weapon Mining Laser Build | -11 -10 -10 -10 -9 ------- Run | Yrd Mat Min Exi Min Slots Evolved . | . . . . . Power . | . . . . . Propulsion . | . . . . . Utility . | . . . . . Weapon . | . . . . . Parts Attached 21 | 6 3 7 1 4 Power 4 | 1 . 2 . 1 Engine 4 | 1 . 2 . 1 Core . | . . . . . Reactor . | . . . . . Propulsion 3 | 2 1 . . . Treads . | . . . . . Leg 3 | 2 1 . . . Wheel . | . . . . . Hover . | . . . . . Flight . | . . . . . Utility 4 | 1 . 2 . 1 Device 1 | . . 1 . . Storage 3 | 1 . 1 . 1 Processor . | . . . . . Hackware . | . . . . . Protection . | . . . . . Artifact . | . . . . . Weapon 10 | 2 2 3 1 2 Energy Gun 3 | 1 . 1 1 . Energy Cannon . | . . . . . Ballistic Gun 4 | 1 1 1 . 1 Ballistic Cannon . | . . . . . Launcher 2 | . 1 . . 1 Special Weapon 1 | . . 1 . . Impact Weapon . | . . . . . Slashing Weapon . | . . . . . Piercing Weapon . | . . . . . Special Melee Weapon . | . . . . . Unidentified Prototypes . | . . . . . Parts Lost 12 | . . 4 . 8 Power 4 | . . 2 . 2 Propulsion 2 | . . 1 . 1 Utility 1 | . . . . 1 Weapon 5 | . . 1 . 4 Highest Loss Streak 5 | . . 3 . 5 To Critical Strikes . | . . . . . Average Slot Usage (%) 84 | . 85 91 85 66 Engine 13 | . 14 13 14 12 Leg 18 | . 28 25 14 6 Device 10 | . . 12 14 5 Storage 14 | . 14 14 14 15 Energy Gun 10 | . 10 1 14 19 Ballistic Gun 10 | . 14 10 14 1 Launcher 3 | . 3 5 . 5 Special Weapon 2 | . . 6 . . Naked Turns . | . . . . . Heaviest Build 17 | 11 13 17 14 16 Greatest Support 20 | 20 20 20 10 10 Greatest Overweight (x) 5 | . . 1 1 5 Average Overweight (x) . | . . . 1 2 Largest Inventory Capacity 8 | 8 8 8 8 8 Average Capacity 7 | 6 8 8 8 8 Most Carried 8 | 5 8 8 7 8 Average Carried 6 | 1 4 6 6 6 Final Capacity 8 | 8 8 8 8 8 Final Carried 7 | 1 7 6 7 5 Class Distribution -------------------- 94% | Mutant 5% | Skirmisher Dominant Class ---------------- Mutant | -10/Materials Mutant | -10/Mines Mutant | -10/Exiles Mutant | -9/Mines Resources | -11 -10 -10 -10 -9 ----------- Run | Yrd Mat Min Exi Min Matter Collected 494 | 158 167 125 . 44 Remotely . | . . . . . Salvage Created 518 | . 187 199 . 132 Parts 50 | . 14 21 . 15 Haulers Intercepted 1 | . 1 . . . Recyclers Shooed . | . . . . . Parts Field Recycled . | . . . . . Retrieved Matter . | . . . . . Parts Self-Destructed . | . . . . . Prevented . | . . . . . Kills | -11 -10 -10 -10 -9 ------- Run | Yrd Mat Min Exi Min Combat Hostiles Destroyed 20 | . 4 10 . 6 Guns 15 | . 2 9 . 4 Cannons 1 | . . 1 . . AOE 4 | . 2 . . 2 Classes Destroyed 5 | . 3 1 . 1 Tunneler 1 | . 1 . . . Hauler 1 | . 1 . . . Recycler 1 | . . . . 1 Swarmer 14 | . . 8 . 6 Grunt 6 | . 4 2 . . Best Kill Streak 4 | . 4 3 . 4 Combat Bots Only 3 | . 2 3 . 3 Max Kills in Single Turn 3 | . 2 1 . 3 Gunslinging . | . . . . . Exploded 2 | . 1 . . 2 Melee . | . . . . . Uniques/NPCs Destroyed . | . . . . . Combat | -11 -10 -10 -10 -9 -------- Run | Yrd Mat Min Exi Min Hostile Shots Fired 165 | . 15 76 . 74 Missed 41 | . 2 20 . 19 Damage Taken 1307 | . 178 493 . 636 Core 259 | . 15 50 . 194 Absorbed by Shields . | . . . . . Core Remaining (%) 100 | 100 . . . . Volleys Fired 61 | . 11 33 . 17 Largest 2 | . 2 2 . 2 Hottest 120 | . 60 120 . 105 Shots Fired 92 | . 22 42 . 28 Gun 86 | . 19 40 . 27 Cannon . | . . . . . Launcher 4 | . 3 . . 1 Special 2 | . . 2 . . Kinetic 46 | . 11 33 . 2 Thermal 17 | . . 9 . 8 Explosive 4 | . 3 . . 1 Electromagnetic 25 | . 8 . . 17 Robot Hit Streak 4 | . 4 4 . 4 Robot Miss Streak 5 | . 1 5 . 4 Penetration Max . | . . . . . Secondary Targets 1 | . . . . 1 Max Gunslinging Chain 1 | . . . . 1 Shots Hit Robots 44 | . 12 19 . 13 Core Hits 32 | . 15 10 . 7 Critical Kills . | . . . . . Critical Parts Destroyed . | . . . . . Critical Strikes 1 | . . . . 1 Corrupt 1 | . . . . 1 Melee Attacks . | . . . . . Impact . | . . . . . Slashing . | . . . . . Piercing . | . . . . . Sneak Attacks . | . . . . . Combat Hostiles . | . . . . . Follow-up Attacks . | . . . . . Damage Inflicted 881 | . 354 287 . 240 Guns 567 | . 157 258 . 152 Cannons . | . . . . . Explosions 280 | . 197 . . 83 Melee . | . . . . . Ramming 10 | . . 5 . 5 Kinetic 348 | . 93 241 . 14 Thermal 70 | . . 41 . 29 Explosive 280 | . 197 . . 83 Electromagnetic 173 | . 64 . . 109 Impact . | . . . . . Slashing . | . . . . . Piercing . | . . . . . Highest Corruption 7 | . . . . 7 Average Corruption 5 | . . . . 5 Corruption Purged . | . . . . . Corruption Blocked . | . . . . . Effects 2 | . . . . 2 Matter Fused 1 | . . . . 1 Energy Discharges 1 | . . . . 1 Overload Shots . | . . . . . Overflow Damage 8 | . . . . 8 Projectiles . | . . . . . Explosions 8 | . . . . 8 Melee . | . . . . . Knockbacks 1 | . . . . 1 Impact 1 | . . . . 1 Kinetic . | . . . . . Secondary . | . . . . . Self-Inflicted Damage 2 | . . . . 2 Shots . | . . . . . Rammed 3 | . . . . 3 Targets Rammed 4 | . . 1 . 3 Kicked 1 | . . 1 . . Crushed . | . . . . . Highest Temperature 282 | . 148 63 . 282 Average Temperature 83 | . 73 27 . 133 Received Heat Transfer 187 | . 120 27 . 40 Siege Activations . | . . . . . Robots Corrupted . | . . . . . Combat Hostiles . | . . . . . Parts Fried . | . . . . . Impact Corruptions . | . . . . . Robots Melted . | . . . . . Combat Hostiles . | . . . . . Parts Melted . | . . . . . Heat Transferred 161 | . . 87 . 74 Parts Sabotaged . | . . . . . Parts Stolen . | . . . . . Parts Stripped . | . . . . . Power Chain Reactions . | . . . . . Alert | -11 -10 -10 -10 -9 ------- Run | Yrd Mat Min Exi Min Peak Influence 162 | . 123 162 . 113 Initial 47 | . . 47 . . Average 73 | . 49 94 . 58 Maximum Alert Level . | . . . . . Low Security (%) 100 | 100 100 100 . 100 Level 1 . | . . . . . Level 2 . | . . . . . Level 3 . | . . . . . Level 4 . | . . . . . Level 5 . | . . . . . High Security . | . . . . . Max Security . | . . . . . Squads Dispatched 1 | . 1 . . . Investigation 1 | . 1 . . . Extermination . | . . . . . Reinforcement . | . . . . . Assault . | . . . . . Garrison . | . . . . . Intercept . | . . . . . Searches Triggered . | . . . . . Construction Impeded . | . . . . . Haulers Reinforced . | . . . . . Active Scanning Responses . | . . . . . Cargo Convoy Interrupts . | . . . . . Stealth | -11 -10 -10 -10 -9 --------- Run | Yrd Mat Min Exi Min Distress Signals . | . . . . . Communications Jammed . | . . . . . Distress Signals . | . . . . . Times Spotted 34 | . 5 11 . 18 Peak Tracking Total 9 | . 2 3 . 9 Tactical Retreats 2 | . . . . 2 Traps | -11 -10 -10 -10 -9 ------- Run | Yrd Mat Min Exi Min Traps Triggered . | . . . . . Indirectly . | . . . . . Trap Hack Attempts . | . . . . . Triggered . | . . . . . Disarmed . | . . . . . Reprogrammed . | . . . . . Reused . | . . . . . Traps Extracted . | . . . . . Installed . | . . . . . Triggered . | . . . . . Machines | -11 -10 -10 -10 -9 ---------- Run | Yrd Mat Min Exi Min Machines Disabled 1 | . . 1 . . Max in Single Turn . | . . . . . Machines Repaired . | . . . . . Machines Dismantled . | . . . . . Machines Sabotaged . | . . . . . Overloaded Fab Kills . | . . . . . Hacking | -11 -10 -10 -10 -9 --------- Run | Yrd Mat Min Exi Min Machines Accessed 9 | . 4 . 5 . Terminals 3 | . 3 . . . Fabricators . | . . . . . Repair Stations . | . . . . . Recycling Units 1 | . 1 . . . Scanalyzers . | . . . . . Garrison Access . | . . . . . Total Hacks 64 | . 14 . 50 . Successful 58 | . 8 . 50 . Failed 6 | . 6 . . . Catastrophic 2 | . 2 . . . Database Lockouts . | . . . . . Manual 2 | . . . 2 . Terminals 11 | . 11 . . . Fabricators . | . . . . . Repair Stations . | . . . . . Recycling Units 3 | . 3 . . . Scanalyzers . | . . . . . Garrison Access . | . . . . . Terminal Hacks 55 | . 5 . 50 . Record 50 | . 1 . 49 . Locate Traps 2 | . 2 . . . Hauler Manifests 1 | . 1 . . . Zone Layout 1 | . 1 . . . Derelict Proto ID Bank 1 | . . . 1 . Fabricator Hacks . | . . . . . Repair Station Hacks . | . . . . . Recycling Unit Hacks 3 | . 3 . . . Process 1 | . 1 . . . Report Inventory 1 | . 1 . . . Retrieve Matter 1 | . 1 . . . Scanalyzer . | . . . . . Garrison Access Hacks . | . . . . . Unauthorized Hacks . | . . . . . Terminals . | . . . . . Fabricators . | . . . . . Repair Stations . | . . . . . Recycling Units . | . . . . . Scanalyzers . | . . . . . Garrison Access . | . . . . . Data Cores Recovered . | . . . . . Used . | . . . . . Hacking Detections 4 | . 4 . . . Full Trace Events 1 | . 1 . . . Feedback Events . | . . . . . Feedback Blocked . | . . . . . Robot Schematics Acquired . | . . . . . Robots Built . | . . . . . Authchips . | . . . . . Time . | . . . . . Total Robot Build Rating . | . . . . . Part Schematics Acquired . | . . . . . Parts Built . | . . . . . Authchips . | . . . . . Time . | . . . . . Total Part Build Rating . | . . . . . Parts Repaired . | . . . . . Time . | . . . . . Parts Recycled . | . . . . . Recycled Matter 2 | . 2 . . . Retrieved Matter 2 | . 2 . . . Retrieved Components . | . . . . . Parts Scanalyzed . | . . . . . Part Schematics Acquired . | . . . . . Parts Damaged . | . . . . . Bothacking | -11 -10 -10 -10 -9 ------------ Run | Yrd Mat Min Exi Min Used RIF Installer . | . . . . . Robots Hacked . | . . . . . Non-combat . | . . . . . Combat . | . . . . . Robot Hacks Applied . | . . . . . Relay Couplers Released . | . . . . . Fabnet Peak Effective % . | . . . . . Robots Rewired . | . . . . . Allies Hacked . | . . . . . Hacks Repelled . | . . . . . Allies | -11 -10 -10 -10 -9 -------- Run | Yrd Mat Min Exi Min Total Allies 1 | . . 1 . . Largest Group 1 | . . 1 . . Highest-Rated Group 31 | . . 31 . . Highest-Rated Ally 31 | . . 31 . . Total Orders . | . . . . . Ally Attacks 6 | . . 6 . . Total Damage 109 | . . 109 . . Kills . | . . . . . Allies Corrupted . | . . . . . Allies Melted . | . . . . . Intel | -11 -10 -10 -10 -9 ------- Run | Yrd Mat Min Exi Min Robot Analysis Total . | . . . . . Derelict Logs Recovered 1 | . . 1 . . Drone Launches . | . . . . . Drone Recoveries . | . . . . . Exploration | -11 -10 -10 -10 -9 ------------- Run | Yrd Mat Min Exi Min Turns Passed 2331 | 53 290 801 841 346 Spaces Moved 1396 | 48 204 566 442 136 Core 84 | 23 . . . 61 Treads . | . . . . . Legs 1312 | 25 204 566 442 75 Wheels . | . . . . . Hover . | . . . . . Flight . | . . . . . Fastest Speed 50 | 50 120 120 190 150 Average Speed 152 | 86 120 125 190 212 Slowest Speed 300 | 120 120 190 190 300 Overloaded Moves . | . . . . . Propulsion Burnouts . | . . . . . Robots Hopped . | . . . . . Cave-ins Triggered . | . . . . . Exploration Rate (%) 46 | 3 38 92 73 25 Regions Visited 4 Branch Regions 3 Pre-discovered Areas 1 | . . . 1 . Known Exits Taken 1 | . . 1 . . Unknown Exits Taken 3 | 1 1 . 1 . Scrap Searched 1 | . . 1 . . Spaces Dug . | . . . . . Terrain Destroyed 20 | . 12 . . 8 Melee . | . . . . . Projectile . | . . . . . AOE 20 | . 12 . . 8 Terrain Rammed . | . . . . . Walls Destroyed . | . . . . . Machines Disabled . | . . . . . Actions | -11 -10 -10 -10 -9 --------- Run | Yrd Mat Min Exi Min Total 1504 | 58 229 612 443 162 Wait . | . . . . . Move 1392 | 47 203 565 441 136 Hop . | . . . . . Pick Up 20 | 5 9 3 1 2 Fast Attach 2 | 2 . . . . Attach 15 | 4 . 7 . 4 Detach 3 | . . 3 . . Swap 4 | . 3 . 1 . Drop 3 | . 3 . . . Fire 61 | . 11 33 . 17 Melee . | . . . . . Ram 3 | . . . . 3 Kick 1 | . . 1 . . Crush . | . . . . . Escape Stasis . | . . . . . Rewire . | . . . . . Trap . | . . . . . Miscellaneous . | . . . . . Route ------- -11/Scrapyard -10/Materials -10/Mines (discovered 2 exits: [*Mat] / *Exi) -10/Exiles (discovered 2 exits: [*Min x2]) -9/Mines (discovered 2 exits: [*Mat x2]) History --------- Turn | Location | Event 8 | -11/Scrapyard | Discovered new exit (range 15) 54 | -11/Scrapyard | Entered Materials 285 | -10/Materials | Discovered new exit (range 8) 323 | -10/Materials | Build established: Mutant 344 | -10/Materials | Entered Mines 647 | -10/Mines | Received a Mining Laser from a helpful Derelict 1067 | -10/Mines | Lost 3 parts (1p1n1w) 1122 | -10/Mines | Identified exit to Exiles 1122 | -10/Mines | Discovered new exit (range 11) 1135 | -10/Mines | Deemed a non-threat by the Exiles lab entrance 1145 | -10/Mines | Entered Exiles 1193 | -10/Exiles | Discovered new exit (range 14) 1237 | -10/Exiles | Met 8R-AWN 1267 | -10/Exiles | Met EX-HEX 1396 | -10/Exiles | Met EX-DEC 1455 | -10/Exiles | Learned location of Zion (-7) 1544 | -10/Exiles | Met EX-BIN 1575 | -10/Exiles | Aligned with FarCom system 1577 | -10/Exiles | Given EX-Vault access code 1696 | -10/Exiles | Opened EX-Vault 1712 | -10/Exiles | Found Superbattery 1753 | -10/Exiles | Warned to stay clear of 0b10 Research branches 1962 | -10/Exiles | Discovered new exit (range 12) 1986 | -10/Exiles | Left Exiles lab with Superbattery 1986 | -10/Exiles | Entered Mines 2021 | -9/Mines | Discovered new exit (range 6) 2147 | -9/Mines | Received a Rocket Launcher from a helpful Derelict 2175 | -9/Mines | Discovered new exit (range 8) 2254 | -9/Mines | Assembled infested the area 2259 | -9/Mines | Assisted by a Guerilla fighting off Assembled 2291 | -9/Mines | Core integrity fell below 50% 2327 | -9/Mines | Core integrity fell below 20% 2332 | -9/Mines | Destroyed by as-70047 with Assembled F-torch Last Messages --------------- 02293_ U-05 Engineer builds a Wall. 02300_ EM Pulse Gun destroyed. 02303_ System corrupted: Energy discharge (-94). 02306_ Knocked back. 02311_ U-05 Engineer builds a Wall. 02312_ U-05 Engineer lays Concrete. 02313_ U-05 Engineer builds a Wall. 02313_ Slammed into U-05 Engineer. 02313_ Destabilizing: System corrupted (+2). 02315_ Slammed into U-05 Engineer. 02315_ U-05 Engineer knocked back. 02315_ U-05 Engineer lays Concrete. 02321_ U-05 Engineer builds a Wall. 02322_ as-29849 IFF system glitched. 02325_ Acquired Lgt. Deuterium Engine. 02327_ U-05 Engineer lays Concrete. 02327_ R-06 Scavenger collects Lgt. Assault Rifle. 02328_ Assault Rifle destroyed. 02330_ Lgt. Deuterium Engine destroyed. Map ----- +----------------------------------------------------+ | ???????????????????????????????????????????????? | | ???????????????????????????????????????????????? | | ???????????????????????????????????????????????? | | ???????????????????????????????????????????????? | | ???????????????????????????????????????????????? | | ???????????????????????????????????????????????? | | ???????????????????????????????????????????????? | | ???????????????????????????????????????????????? | | ???????????????????????????????????????????????? | | ???????????????????????????????????????????????? | | ???????????????????????????????????????????????? | | ???????????????????????????????????????????????? | | ???????????????????????????????????????????????? | | ???????????????????????????????????????????????? | | ????????????????????###????????????????????????? | | ??????????????###??# ##?########## #??????????? | | ?????????????## ## #?#| #??????????? | | ?????????????# # # ######## #??????????? | | ?????????????# < # #?# #???????????????? | | ??????????????# #??# # #???????????????? | | ???????????????# #???#a# #???????????????? | | ????????######### #???##aa #????????????????? | | ????????# ## [##??##aa! #????????????????? | | ????????# """ = ##### aa #????????????????? | | ????????# """ # =### r #????????????????? | | ????????# """ ## @ % #????????????????? | | ????????? """ ?# ##????????????????? | | ?????????? ??# #####?????????????????? | | ????????? ??## r ##?????????????????????? | | ?????????####????# ##?????????????????????? | | ????????????????## ##????????????????????? | | ????????????##### ####?????????????????? | | ???????????## u #?????????????????? | | ???????????# % #????????????????? | | ???????????# % =! ## #????????????????? | | ??##########% % ###### ##????????????????? | | ??# ## #?????# ##?????????????????? | | ??# ## =## #??????# ##??????????????????? | | ??# ## ## #???????##???????????????????? | | ??# ## #????????????????????????????? | | ??# ###### ########?????????????????????? | | ??# < #??## # #?????????????????????? | | ??# #??# # !! #?????????????????????? | | ??# #??# ! #?????????????????????? | | ??# #??# !! #?????????????????????? | | ??# #??# !! #?????????????????????? | | ??# """ #??# #?????????????????????? | | ??# """ #??## ##?????????????????????? | | ??# """ #???###### ##?????????????????????? | | ??# #????????## #?????????????????????? | +----------------------------------------------------+ Best States ------------- Heat Dissipation 25 Energy Generation 14 Energy Capacity 390 Matter Stores 300 Matter Capacity 300 Sight Range 16 Robot Scan Range 14 Terrain Scan Density 10 Evasion (%) 55 Item Schematics ----------------- None Robot Schematics ------------------ None Fabricated ------------ Nothing Alien Tech Used ----------------- None Achievements -------------- None Challenges ------------ None Game ------ Seed AssaultTeslaBoomstick Manual? 0 Play Time 00:32:49 Cumulative 3.1 hours Start 2024.03.31 @ 20:02:42 End 2024.03.31 @ 22:21:48 Sessions 1 Manual Loads 0 Difficulty Rogue Special Mode None Game No. 5 Rogue 5 Adventurer 0 Explorer 0 Win Type - Total 0 Types 0/0/0/0/0/0/0/0/0 Lore% 9 Gallery% 6 Achievement% 8 Wizard Run 0 Options --------- Layout 1 ASCII 0 Keyboard 0 Movement Mouse Keybinds 0 Fullscreen 1 Font 24/Smallcaps Map View 50x35 Zoom Use 0% Tactical HUD 1 Map Filters NONE Filters NONE Steam 0 RUN: c1a31a28-7faf-4615-aa5b-4efc5ae1a62a